fUSD/lending_fUSD_20240428
["ID","MTS","AMOUNT","RATE_DAILY","PERIOD"]
[324800586,1714338652989,-212.10083578,0.00010958,2]
[324800587,1714338652998,-1678.94,0.00010958,2]
[324800588,1714338653007,-543.68,0.00010958,2]
[324800589,1714338653016,-500.0,0.00010958,2]
[324800590,1714338653025,-430.4832771,0.00010958,2]
[324800591,1714338653036,-404.4192757,0.00010958,2]
[324800592,1714338653047,-762.58582215,0.00010958,2]
[324800593,1714338653058,-310.0765343,0.00010958,2]
[324800594,1714338653068,-1461.22509075,0.00010958,2]
[324800595,1714338653078,-718.20214935,0.00010958,2]
[324800596,1714338653089,-461.68785065,0.00010958,2]
[324800597,1714338653099,-435.56661935,0.00010958,2]
[324800598,1714338653110,-64.43338065,0.00010958,2]
[324800599,1714338653119,-500.0,0.00010958,2]
[324800600,1714338653129,-164.56661935,0.00010958,2]
[324800601,1714338653140,-5931.25338065,0.00010958,2]
[324800602,1714338653149,-1538.95,0.00010958,2]
[324800603,1714338653159,-500.0,0.00010958,2]
[324800604,1714338653168,-500.0,0.00010958,2]
[324800605,1714338653177,-83.60430766,0.00010958,2]
[324800606,1714338653188,-416.39569234,0.00010958,2]
[324800607,1714338653197,-500.0,0.00010958,2]
[324800608,1714338653206,-500.0,0.00010958,2]
[324800609,1714338653215,-500.0,0.00010958,2]
[324800610,1714338653224,-936.82,0.00010958,2]
[324800611,1714338653233,-500.0,0.00010958,2]
[324800612,1714338653242,-289.63450812,0.00010958,2]
[324800613,1714338653253,-442.00189353,0.00010958,2]
[324800614,1714338653264,-667.0664,0.00010958,2]
[324800630,1714339734918,155.0,8.186e-05,5]
[324800669,1714339831878,-312.71181864,8.181e-05,2]
[324800671,1714339831888,-20.28818136,8.182e-05,2]
[324800677,1714339831935,-186.59495448,8.182e-05,2]
[324800680,1714339831945,-262.42010681,8.183e-05,2]
[324800681,1714339831955,-340.27780695,8.184e-05,2]
[324800682,1714339831967,-417.27522362,8.184e-05,2]
[324800683,1714339831978,-1037.08295783,8.184e-05,2]
[324800684,1714339831989,-528.24901043,8.184e-05,2]
[324800685,1714339831998,-155.0,8.184e-05,2]
[324800686,1714339832007,-5054.25098957,8.184e-05,2]
[324800687,1714339832018,-1497.07238,8.184e-05,2]
[324800688,1714339832030,-5782.16827489,8.184e-05,2]
[324800689,1714339832042,-432.13597191,8.184e-05,2]
[324800690,1714339832054,-290.0,8.184e-05,2]
[324800691,1714339832065,-1962.53935742,8.184e-05,2]
[324800692,1714339832076,-5450.93999964,8.184e-05,2]
[324800693,1714339832114,-2309.30315447,8.184e-05,2]
[324800694,1714339832124,-1740.69684553,8.185e-05,2]
[324800695,1714339832135,-251.16275447,8.185e-05,2]
[324800696,1714339832144,-1148.83724549,8.208e-05,2]
[324800697,1714339832156,-96.31869117,8.208e-05,2]
[324800698,1714339832165,-389.17,8.219e-05,2]
[324800707,1714339832423,-1000.0,9.229e-05,2]
[324800708,1714339832439,-200.0,9.235e-05,2]
[324800709,1714339832450,-160.0,9.256e-05,2]
[324800710,1714339832459,-1465.83,9.269e-05,2]
[324800711,1714339832469,-5634.13469279,9.269e-05,2]
[324800712,1714339832483,-427.34999358,9.269e-05,2]
[324800713,1714339832495,-367.39999985,9.269e-05,2]
[324800714,1714339832507,-490.0,9.269e-05,2]
[324800715,1714339832518,-423.02988,9.269e-05,2]
[324800716,1714339832530,-378.73,9.269e-05,2]
[324800717,1714339832543,-1451.45000021,9.269e-05,2]
[324800718,1714339832555,-14727.90543357,9.269e-05,2]
[324800719,1714339832565,-250.0,9.269e-05,2]
[324800720,1714339832575,-500.0,9.293e-05,2]
[324800721,1714339832585,-234.75,9.301e-05,2]
[324800722,1714339832595,-150.0,9.349e-05,2]
[324800723,1714339832605,-160.64,9.452e-05,2]
[324800724,1714339832617,-13229.11,9.67e-05,2]
[324800725,1714339832627,-499.99,9.67e-05,2]
[324800726,1714339832637,-356.81,9.67e-05,2]
[324800727,1714339832646,-150.99,9.67e-05,2]
[324800728,1714339832655,-2162.2,9.67e-05,2]
[324800729,1714339832664,-170.59,9.778e-05,2]
[324800730,1714339832673,-150.99,9.778e-05,2]
[324800731,1714339832682,-294.35452038,9.86e-05,5]
[324800732,1714339832691,-422.90730266,9.862e-05,2]
[324800733,1714339832700,-178.06,9.863e-05,2]
[324800734,1714339832709,-1254.46031116,9.914e-05,2]
[324800735,1714339832718,-1254.46031116,9.914e-05,2]
[324800736,1714339832727,-710.59605264,0.0001,2]
[324800737,1714339832736,-175.36,0.00010033,2]
[324800738,1714339832746,-25175.0,0.00010166,2]
[324800739,1714339832759,-500.0,0.0001038,2]
[324800740,1714339832770,-38797.9976,0.0001038,2]
[324800741,1714339832780,-3314.682,0.0001038,2]
[324800742,1714339832791,-1000.0,0.00010383,2]
[324800743,1714339832801,-389.17,0.00010435,2]
[324800744,1714339832811,-160.64,0.00010634,2]
[324800745,1714339832820,-347.954734,0.000108,2]
[324800746,1714339832829,-1265.1091,0.00010856,2]
[324800747,1714339832840,-2500.0,0.00010856,2]
[324800748,1714339832851,-237.09589704,0.00010857,2]
[324800749,1714339832861,-266.31372902,0.00010858,2]
[324800750,1714339832870,-174.27566945,0.00010858,2]
[324800751,1714339832880,-3252.39319555,0.00010858,2]
[324800752,1714339832890,-10000.0,0.00010858,2]
[324800753,1714339832899,-500.0,0.0001087,2]
[324800754,1714339832908,-237.09589704,0.00010926,2]
[324800755,1714339832918,-870.09824636,0.00010946,2]
[324800756,1714339832932,-779.28,0.00010946,2]
[324800757,1714339832958,-2934.57178493,0.00010946,2]
[324800758,1714339832967,-305.36506382,0.00010955,2]
[324800759,1714339832977,-807.69146042,0.00010955,2]
[324800760,1714339832989,-1057.6,0.00010955,2]
[324800761,1714339833000,-380.54,0.00010955,2]
[324800762,1714339833011,-114.48082667,0.00010955,2]
[324800763,1714339833021,-190.99719088,0.00010955,2]
[324800764,1714339833030,-211.83191101,0.00010955,2]
[324800765,1714339833039,-190.62497532,0.00010955,2]
[324800766,1714339833048,-209.99236181,0.00010955,2]
[324800767,1714339833057,-155.70538448,0.00010956,2]
[324800768,1714339833067,-201.70925852,0.00010956,2]
[324800769,1714339833076,-315.28299922,0.00010956,2]
[324800770,1714339833085,-155.66445077,0.00010956,2]
[324800771,1714339833114,-826.3254998,0.00010956,2]
[324800772,1714339833126,-4106.91365429,0.00010956,2]
[324800773,1714339833135,-155.0,0.00010956,2]
[324800774,1714339833145,-306.31282982,0.00010956,2]
[324800775,1714339833154,-177.76305893,0.00010956,2]
[324800776,1714339833164,-990.62994113,0.00010956,2]
[324800777,1714339833174,-1878.64116905,0.00010956,2]
[324800778,1714339833183,-167.31550311,0.00010956,2]
[324800779,1714339833193,-31948.21510945,0.00010956,2]
[324800780,1714339833202,-155.56538191,0.00010956,2]
[324800781,1714339833211,-190.61689936,0.00010956,2]
[324800782,1714339833221,-325.67432968,0.00010956,2]
[324800783,1714339833230,-156.45340642,0.00010956,2]
[324800784,1714339833240,-215.98548558,0.00010956,2]
[324800785,1714339833250,-174.12211115,0.00010956,2]
[324800786,1714339833259,-309.89472683,0.00010956,2]
[324800787,1714339833268,-155.96289677,0.00010956,2]
[324800788,1714339833278,-155.2599321,0.00010956,2]
[324800789,1714339833287,-1352.02412604,0.00010956,2]
[324800790,1714339833296,-155.0,0.00010956,2]
[324800791,1714339833305,-155.0,0.00010956,2]
[324800792,1714339833315,-155.0,0.00010956,2]
[324800793,1714339833324,-155.51813378,0.00010956,2]
[324800794,1714339833333,-261.04634211,0.00010956,2]
[324800795,1714339833343,-2135.34001753,0.00010956,2]
[324800796,1714339833352,-156.12940981,0.00010956,2]
[324800797,1714339833361,-2179.97190532,0.00010956,2]
[324800798,1714339833371,-155.3047756,0.00010956,2]
[324800799,1714339833381,-200.75265252,0.00010956,2]
[324800800,1714339833390,-189.71207442,0.00010956,2]
[324800801,1714339833399,-236.56224941,0.00010956,2]
[324800802,1714339833409,-481084.75366432,0.00010957,2]
[324800803,1714339833422,-65861.79382598,0.00010957,2]
[324800804,1714339833461,-11941.32622673,0.00010957,2]
[324800805,1714339833475,-363.76455997,0.00010957,2]
[324800806,1714339833487,-5303.3560839,0.00010957,2]
[324800807,1714339833500,-553.68213634,0.00010957,2]
[324800808,1714339833511,-4480.79283856,0.00010957,2]
[324800877,1714339838163,-2322.88499883,8.181e-05,2]
[324800878,1714339838172,-401.11500117,0.00010957,2]
[324800879,1714339838184,-281.68,0.00010957,2]
[324800880,1714339838210,-376.17167403,0.00010957,2]
[324800881,1714339838221,-3577.80730142,0.00010957,2]
[324800882,1714339838233,-2227.61246625,0.00010957,2]
[324800883,1714339838244,-2227.68,0.00010957,2]
[324800884,1714339838269,-106719.33691508,0.00010957,2]
[324800885,1714339838279,-207.19321246,0.00010957,2]
[324800886,1714339838288,-5849.50894918,0.00010957,2]
[324800887,1714339838297,-500.0,0.00010958,2]
[324800889,1714339838306,-500.0,0.00010958,2]
[324800890,1714339838315,-500.0,0.00010958,2]
[324800891,1714339838325,-500.0,0.00010958,2]
[324800892,1714339838334,-508.88395803,0.00010958,2]
[324800893,1714339838343,-500.0,0.00010958,2]
[324800894,1714339838352,-500.0,0.00010958,2]
[324800895,1714339838361,-500.0,0.00010958,2]
[324800896,1714339838372,-500.0,0.00010958,2]
[324800897,1714339838381,-500.0,0.00010958,2]
[324800899,1714339838390,-500.0,0.00010958,2]
[324800900,1714339838399,-500.0,0.00010958,2]
[324800901,1714339838408,-500.0,0.00010958,2]
[324800902,1714339838417,-500.0,0.00010958,2]
[324800903,1714339838426,-500.0,0.00010958,2]
[324800904,1714339838435,-500.0,0.00010958,2]
[324800905,1714339838445,-500.0,0.00010958,2]
[324800906,1714339838454,-432.48267008,0.00010958,2]
[324800907,1714339838463,-500.0,0.00010958,2]
[324800908,1714339838472,-500.0,0.00010958,2]
[324800909,1714339838481,-500.0,0.00010958,2]
[324800910,1714339838491,-500.0,0.00010958,2]
[324800911,1714339838499,-500.0,0.00010958,2]
[324800912,1714339838508,-500.0,0.00010958,2]
[324800913,1714339838517,-668.69,0.00010958,2]
[324800914,1714339838526,-500.0,0.00010958,2]
[324800915,1714339838535,-500.0,0.00010958,2]
[324800916,1714339838544,-500.0,0.00010958,2]
[324800917,1714339838553,-500.0,0.00010958,2]
[324800918,1714339838562,-419.18708098,0.00010958,2]
[324800919,1714339838572,-500.0,0.00010958,2]
[324800920,1714339838581,-500.0,0.00010958,2]
[324800921,1714339838589,-500.0,0.00010958,2]
[324800922,1714339838598,-500.0,0.00010958,2]
[324800923,1714339838608,-500.0,0.00010958,2]
[324800924,1714339838616,-500.0,0.00010958,2]
[324800925,1714339838627,-500.0,0.00010958,2]
[324800926,1714339838636,-500.0,0.00010958,2]
[324800927,1714339838645,-500.0,0.00010958,2]
[324800928,1714339838654,-500.0,0.00010958,2]
[324800929,1714339838663,-500.0,0.00010958,2]
[324800930,1714339838672,-500.0,0.00010958,2]
[324800931,1714339838682,-500.0,0.00010958,2]
[324800932,1714339838690,-500.0,0.00010958,2]
[324800933,1714339838701,-500.0,0.00010958,2]
[324800934,1714339838710,-500.0,0.00010958,2]
[324800935,1714339838719,-500.0,0.00010958,2]
[324800936,1714339838728,-500.0,0.00010958,2]
[324800937,1714339838738,-500.0,0.00010958,2]
[324800938,1714339838748,-500.0,0.00010958,2]
[324800939,1714339838761,-500.0,0.00010958,2]
[324800940,1714339838771,-500.0,0.00010958,2]
[324800941,1714339838785,-500.0,0.00010958,2]
[324800942,1714339838795,-500.0,0.00010958,2]
[324800943,1714339838804,-500.0,0.00010958,2]
[324800944,1714339838812,-500.0,0.00010958,2]
[324800945,1714339838821,-500.0,0.00010958,2]
[324800946,1714339838831,-500.0,0.00010958,2]
[324800947,1714339838840,-500.0,0.00010958,2]
[324800948,1714339838849,-500.0,0.00010958,2]
[324800949,1714339838858,-184.60316647,0.00010958,2]
[324800950,1714339838868,-500.0,0.00010958,2]
[324800951,1714339838878,-553.6179564,0.00010958,2]
[324800952,1714339838887,-500.0,0.00010958,2]
[324800953,1714339838898,-500.0,0.00010958,2]
[324800954,1714339838910,-500.0,0.00010958,2]
[324800955,1714339838919,-500.0,0.00010958,2]
[324800956,1714339838929,-500.0,0.00010958,2]
[324800957,1714339838939,-500.0,0.00010958,2]
[324800958,1714339838948,-500.0,0.00010958,2]
[324800959,1714339838957,-500.0,0.00010958,2]
[324800960,1714339838968,-418.38,0.00010958,2]
[324800961,1714339838979,-500.0,0.00010958,2]
[324800962,1714339838988,-500.0,0.00010958,2]
[324800963,1714339838999,-500.0,0.00010958,2]
[324800964,1714339839009,-500.0,0.00010958,2]
[324800965,1714339839019,-500.0,0.00010958,2]
[324800966,1714339839030,-500.0,0.00010958,2]
[324800967,1714339839039,-500.0,0.00010958,2]
[324800968,1714339839048,-500.0,0.00010958,2]
[324800969,1714339839057,-500.0,0.00010958,2]
[324800970,1714339839066,-500.0,0.00010958,2]
[324800971,1714339839075,-504.3070864,0.00010958,2]
[324800972,1714339839084,-500.0,0.00010958,2]
[324800973,1714339839093,-500.0,0.00010958,2]
[324800974,1714339839102,-500.0,0.00010958,2]
[324800975,1714339839111,-500.0,0.00010958,2]
[324800976,1714339839121,-500.0,0.00010958,2]
[324800977,1714339839131,-506.83,0.00010958,2]
[324800978,1714339839140,-500.0,0.00010958,2]
[324800979,1714339839149,-500.0,0.00010958,2]
[324800980,1714339839159,-500.0,0.00010958,2]
[324800981,1714339839167,-500.0,0.00010958,2]
[324800982,1714339839176,-500.0,0.00010958,2]
[324800983,1714339839186,-500.0,0.00010958,2]
[324800984,1714339839194,-500.0,0.00010958,2]
[324800985,1714339839203,-500.0,0.00010958,2]
[324800986,1714339839213,-500.0,0.00010958,2]
[324800987,1714339839222,-500.0,0.00010958,2]
[324800988,1714339839232,-500.0,0.00010958,2]
[324800989,1714339839241,-500.0,0.00010958,2]
[324800990,1714339839250,-500.0,0.00010958,2]
[324800991,1714339839259,-500.0,0.00010958,2]
[324800992,1714339839269,-500.0,0.00010958,2]
[324800993,1714339839278,-500.0,0.00010958,2]
[324800994,1714339839287,-500.0,0.00010958,2]
[324800995,1714339839297,-500.0,0.00010958,2]
[324800996,1714339839305,-500.0,0.00010958,2]
[324800997,1714339839314,-500.0,0.00010958,2]
[324800998,1714339839324,-500.0,0.00010958,2]
[324800999,1714339839333,-500.0,0.00010958,2]
[324801000,1714339839342,-500.0,0.00010958,2]
[324801001,1714339839351,-500.0,0.00010958,2]
[324801002,1714339839360,-500.0,0.00010958,2]
[324801003,1714339839369,-500.0,0.00010958,2]
[324801004,1714339839378,-500.0,0.00010958,2]
[324801005,1714339839387,-500.0,0.00010958,2]
[324801006,1714339839396,-500.0,0.00010958,2]
[324801007,1714339839405,-500.0,0.00010958,2]
[324801008,1714339839413,-500.0,0.00010958,2]
[324801009,1714339839423,-606.71805572,0.00010958,2]
[324801010,1714339839432,-500.0,0.00010958,2]
[324801011,1714339839441,-500.0,0.00010958,2]
[324801012,1714339839450,-500.0,0.00010958,2]
[324801013,1714339839460,-500.0,0.00010958,2]
[324801014,1714339839469,-500.0,0.00010958,2]
[324801015,1714339839479,-504.92211818,0.00010958,2]
[324801016,1714339839488,-500.0,0.00010958,2]
[324801017,1714339839497,-236.4,0.00010958,2]
[324801018,1714339839506,-500.0,0.00010958,2]
[324801019,1714339839515,-500.0,0.00010958,2]
[324801020,1714339839523,-500.0,0.00010958,2]
[324801021,1714339839532,-500.0,0.00010958,2]
[324801022,1714339839541,-500.0,0.00010958,2]
[324801023,1714339839550,-500.0,0.00010958,2]
[324801024,1714339839558,-500.0,0.00010958,2]
[324801025,1714339839567,-329.07291886,0.00010958,2]
[324801026,1714339839576,-500.0,0.00010958,2]
[324801027,1714339839585,-500.0,0.00010958,2]
[324801028,1714339839594,-208.21685267,0.00010958,2]
[324801029,1714339839602,-500.0,0.00010958,2]
[324801030,1714339839611,-500.0,0.00010958,2]
[324801032,1714339839620,-500.0,0.00010958,2]
[324801033,1714339839629,-500.0,0.00010958,2]
[324801034,1714339839638,-500.0,0.00010958,2]
[324801035,1714339839647,-500.0,0.00010958,2]
[324801036,1714339839656,-500.0,0.00010958,2]
[324801037,1714339839665,-500.0,0.00010958,2]
[324801039,1714339839674,-500.0,0.00010958,2]
[324801040,1714339839682,-500.0,0.00010958,2]
[324801041,1714339839691,-500.0,0.00010958,2]
[324801042,1714339839700,-190.54785455,0.00010958,2]
[324801043,1714339839709,-500.0,0.00010958,2]
[324801044,1714339839718,-500.0,0.00010958,2]
[324801045,1714339839728,-500.0,0.00010958,2]
[324801046,1714339839737,-500.0,0.00010958,2]
[324801047,1714339839746,-500.0,0.00010958,2]
[324801048,1714339839760,-500.0,0.00010958,2]
[324801049,1714339839769,-500.0,0.00010958,2]
[324801050,1714339839778,-507.72553441,0.00010958,2]
[324801052,1714339839787,-500.0,0.00010958,2]
[324801053,1714339839796,-500.0,0.00010958,2]
[324801054,1714339839805,-500.0,0.00010958,2]
[324801056,1714339839814,-500.0,0.00010958,2]
[324801057,1714339839823,-500.0,0.00010958,2]
[324801059,1714339839835,-497.55248963,0.00010958,2]
[324801060,1714339839844,-500.0,0.00010958,2]
[324801061,1714339839854,-500.0,0.00010958,2]
[324801062,1714339839863,-500.0,0.00010958,2]
[324801063,1714339839872,-632.40466127,0.00010958,2]
[324801064,1714339839881,-500.0,0.00010958,2]
[324801065,1714339839890,-155.0,0.00010958,2]
[324801066,1714339839899,-500.0,0.00010958,2]
[324801067,1714339839907,-500.0,0.00010958,2]
[324801068,1714339839916,-500.0,0.00010958,2]
[324801069,1714339839926,-500.0,0.00010958,2]
[324801070,1714339839935,-500.0,0.00010958,2]
[324801071,1714339839945,-500.0,0.00010958,2]
[324801072,1714339839954,-500.0,0.00010958,2]
[324801073,1714339839963,-500.0,0.00010958,2]
[324801074,1714339839972,-500.0,0.00010958,2]
[324801075,1714339839982,-500.0,0.00010958,2]
[324801076,1714339839991,-500.0,0.00010958,2]
[324801077,1714339839999,-500.0,0.00010958,2]
[324801078,1714339840008,-500.0,0.00010958,2]
[324801079,1714339840023,-500.0,0.00010958,2]
[324801080,1714339840037,-498.29522645,0.00010958,2]
[324801081,1714339840051,-500.0,0.00010958,2]
[324801082,1714339840063,-500.0,0.00010958,2]
[324801083,1714339840074,-500.0,0.00010958,2]
[324801084,1714339840087,-500.0,0.00010958,2]
[324801085,1714339840100,-500.0,0.00010958,2]
[324801086,1714339840112,-500.0,0.00010958,2]
[324801087,1714339840124,-500.0,0.00010958,2]
[324801088,1714339840138,-159.77520798,0.00010958,2]
[324801089,1714339840150,-500.0,0.00010958,2]
[324801090,1714339840163,-500.0,0.00010958,2]
[324801091,1714339840176,-500.0,0.00010958,2]
[324801092,1714339840188,-500.0,0.00010958,2]
[324801093,1714339840200,-500.0,0.00010958,2]
[324801094,1714339840211,-500.0,0.00010958,2]
[324801095,1714339840223,-500.0,0.00010958,2]
[324801096,1714339840236,-500.0,0.00010958,2]
[324801097,1714339840247,-500.0,0.00010958,2]
[324801098,1714339840260,-500.0,0.00010958,2]
[324801099,1714339840272,-157.18714417,0.00010958,2]
[324801100,1714339840283,-500.0,0.00010958,2]
[324801101,1714339840296,-500.0,0.00010958,2]
[324801102,1714339840310,-500.0,0.00010958,2]
[324801103,1714339840323,-202.70748882,0.00010958,2]
[324801104,1714339840336,-500.0,0.00010958,2]
[324801105,1714339840349,-500.0,0.00010958,2]
[324801106,1714339840364,-500.0,0.00010958,2]
[324801107,1714339840378,-373.68414433,0.00010958,2]
[324801108,1714339840391,-500.0,0.00010958,2]
[324801109,1714339840402,-500.0,0.00010958,2]
[324801110,1714339840412,-500.0,0.00010958,2]
[324801112,1714339840423,-500.0,0.00010958,2]
[324801114,1714339840433,-586.34,0.00010958,2]
[324801116,1714339840445,-500.0,0.00010958,2]
[324801118,1714339840457,-500.0,0.00010958,2]
[324801123,1714339840470,-517.57,0.00010958,2]
[324801125,1714339840480,-500.0,0.00010958,2]
[324801127,1714339840491,-500.0,0.00010958,2]
[324801129,1714339840502,-500.0,0.00010958,2]
[324801131,1714339840514,-500.4795884,0.00010958,2]
[324801134,1714339840527,-500.0,0.00010958,2]
[324801136,1714339840538,-500.0,0.00010958,2]
[324801138,1714339840549,-733.89,0.00010958,2]
[324801140,1714339840559,-674.04,0.00010958,2]
[324801142,1714339840570,-500.0,0.00010958,2]
[324801144,1714339840581,-500.0,0.00010958,2]
[324801146,1714339840592,-500.0,0.00010958,2]
[324801148,1714339840603,-500.0,0.00010958,2]
[324801151,1714339840614,-500.0,0.00010958,2]
[324801153,1714339840626,-500.0,0.00010958,2]
[324801155,1714339840637,-500.0,0.00010958,2]
[324801157,1714339840648,-500.0,0.00010958,2]
[324801160,1714339840663,-500.0,0.00010958,2]
[324801162,1714339840674,-500.0,0.00010958,2]
[324801164,1714339840685,-500.0,0.00010958,2]
[324801165,1714339840696,-500.0,0.00010958,2]
[324801166,1714339840707,-500.0,0.00010958,2]
[324801167,1714339840718,-500.0,0.00010958,2]
[324801168,1714339840729,-500.0,0.00010958,2]
[324801169,1714339840740,-500.0,0.00010958,2]
[324801170,1714339840752,-500.0,0.00010958,2]
[324801171,1714339840766,-500.0,0.00010958,2]
[324801172,1714339840777,-500.0,0.00010958,2]
[324801173,1714339840788,-552.07,0.00010958,2]
[324801174,1714339840799,-500.0,0.00010958,2]
[324801175,1714339840812,-500.0,0.00010958,2]
[324801176,1714339840823,-588.66,0.00010958,2]
[324801177,1714339840834,-500.0,0.00010958,2]
[324801178,1714339840845,-500.0,0.00010958,2]
[324801179,1714339840856,-500.0,0.00010958,2]
[324801180,1714339840867,-500.0,0.00010958,2]
[324801181,1714339840878,-798.42,0.00010958,2]
[324801182,1714339840889,-500.0,0.00010958,2]
[324801183,1714339840900,-525.02111243,0.00010958,2]
[324801184,1714339840911,-500.0,0.00010958,2]
[324801185,1714339840923,-500.0,0.00010958,2]
[324801186,1714339840934,-500.0,0.00010958,2]
[324801187,1714339840945,-500.0,0.00010958,2]
[324801188,1714339840956,-500.0,0.00010958,2]
[324801189,1714339840966,-500.0,0.00010958,2]
[324801190,1714339840977,-626.82,0.00010958,2]
[324801191,1714339840988,-500.0,0.00010958,2]
[324801192,1714339840999,-928.66,0.00010958,2]
[324801193,1714339841010,-500.0,0.00010958,2]
[324801194,1714339841021,-500.0,0.00010958,2]
[324801195,1714339841031,-500.0,0.00010958,2]
[324801196,1714339841042,-500.0,0.00010958,2]
[324801197,1714339841053,-500.0,0.00010958,2]
[324801198,1714339841064,-500.0,0.00010958,2]
[324801199,1714339841074,-505.51,0.00010958,2]
[324801200,1714339841085,-500.0,0.00010958,2]
[324801201,1714339841096,-500.0,0.00010958,2]
[324801202,1714339841107,-500.0,0.00010958,2]
[324801203,1714339841118,-903.89,0.00010958,2]
[324801204,1714339841131,-500.0,0.00010958,2]
[324801205,1714339841142,-737.63,0.00010958,2]
[324801206,1714339841152,-500.0,0.00010958,2]
[324801207,1714339841165,-500.0,0.00010958,2]
[324801208,1714339841177,-500.0,0.00010958,2]
[324801209,1714339841188,-500.0,0.00010958,2]
[324801210,1714339841199,-500.0,0.00010958,2]
[324801211,1714339841210,-718.49,0.00010958,2]
[324801212,1714339841220,-500.0,0.00010958,2]
[324801213,1714339841232,-864.97,0.00010958,2]
[324801214,1714339841242,-500.0,0.00010958,2]
[324801215,1714339841255,-504.53,0.00010958,2]
[324801216,1714339841266,-500.0,0.00010958,2]
[324801217,1714339841278,-500.0,0.00010958,2]
[324801218,1714339841290,-500.0,0.00010958,2]
[324801219,1714339841301,-500.0,0.00010958,2]
[324801220,1714339841313,-500.0,0.00010958,2]
[324801221,1714339841325,-411.49356513,0.00010958,2]
[324801222,1714339841336,-500.0,0.00010958,2]
[324801223,1714339841347,-500.0,0.00010958,2]
[324801224,1714339841358,-500.0,0.00010958,2]
[324801225,1714339841369,-224.47,0.00010958,2]
[324801226,1714339841382,-500.0,0.00010958,2]
[324801227,1714339841392,-500.0,0.00010958,2]
[324801228,1714339841404,-500.0,0.00010958,2]
[324801229,1714339841415,-500.0,0.00010958,2]
[324801230,1714339841426,-500.0,0.00010958,2]
[324801231,1714339841437,-500.0,0.00010958,2]
[324801232,1714339841448,-500.0,0.00010958,2]
[324801233,1714339841459,-500.0,0.00010958,2]
[324801234,1714339841470,-500.0,0.00010958,2]
[324801235,1714339841481,-183.93346668,0.00010958,2]
[324801236,1714339841492,-500.0,0.00010958,2]
[324801237,1714339841503,-500.0,0.00010958,2]
[324801238,1714339841514,-594.05,0.00010958,2]
[324801239,1714339841524,-500.0,0.00010958,2]
[324801240,1714339841536,-500.0,0.00010958,2]
[324801241,1714339841546,-500.0,0.00010958,2]
[324801242,1714339841558,-500.0,0.00010958,2]
[324801243,1714339841570,-500.0,0.00010958,2]
[324801244,1714339841581,-500.0,0.00010958,2]
[324801245,1714339841593,-870.38,0.00010958,2]
[324801246,1714339841605,-500.0,0.00010958,2]
[324801247,1714339841616,-500.0,0.00010958,2]
[324801248,1714339841629,-500.0,0.00010958,2]
[324801249,1714339841640,-534.04024848,0.00010958,2]
[324801250,1714339841652,-500.0,0.00010958,2]
[324801251,1714339841664,-500.0,0.00010958,2]
[324801252,1714339841675,-500.0,0.00010958,2]
[324801253,1714339841687,-500.0,0.00010958,2]
[324801254,1714339841699,-500.0,0.00010958,2]
[324801255,1714339841711,-500.0,0.00010958,2]
[324801256,1714339841722,-330.31177771,0.00010958,2]
[324801257,1714339841734,-501.18,0.00010958,2]
[324801258,1714339841745,-500.0,0.00010958,2]
[324801259,1714339841757,-500.0,0.00010958,2]